fUST/lending_fUST_20241203
["ID","MTS","AMOUNT","RATE_DAILY","PERIOD"]
[344031997,1733232571311,-3090.37330511,0.00030915,2]
[344031998,1733232571335,-6666.0,0.00030922,2]
[344031999,1733232571357,-6823.33692752,0.00030922,21]
[344032000,1733232571380,-200.03833469,0.00030987,2]
[344032001,1733232571472,-500.0,0.00030987,2]
[344032002,1733232571495,-500.0,0.00030987,2]
[344032003,1733232571518,-500.0,0.00030987,2]
[344032004,1733232571538,-479.94676848,0.00030987,2]
[344032005,1733232571558,-500.0,0.00030987,2]
[344032006,1733232571580,-500.0,0.00030987,2]
[344032007,1733232571601,-500.0,0.00030987,2]
[344032008,1733232571624,-500.0,0.00030987,2]
[344032009,1733232571645,-500.0,0.00030987,2]
[344032010,1733232571666,-500.0,0.00030987,2]
[344032011,1733232571686,-500.0,0.00030987,2]
[344032012,1733232571706,-500.0,0.00030987,2]
[344032013,1733232571725,-290.69199555,0.00030987,2]
[344032014,1733232571745,-500.0,0.00030987,2]
[344032015,1733232571765,-418.4249317,0.00030987,2]
[344032016,1733232571785,-500.0,0.00030987,2]
[344032017,1733232571805,-196.25589474,0.00030987,2]
[344032018,1733232571826,-500.0,0.00030987,2]
[344032019,1733232571848,-500.0,0.00030987,2]
[344032020,1733232571871,-500.0,0.00030987,2]
[344032021,1733232571891,-500.0,0.00030987,2]
[344032022,1733232571912,-500.0,0.00030987,2]
[344032023,1733232571934,-500.0,0.00030987,2]
[344032024,1733232571954,-500.0,0.00030987,2]
[344032025,1733232571976,-500.0,0.00030987,2]
[344032026,1733232571996,-500.0,0.00030987,2]
[344032027,1733232572018,-500.0,0.00030987,2]
[344032028,1733232572038,-500.0,0.00030987,2]
[344032029,1733232572060,-500.0,0.00030987,2]
[344032030,1733232572082,-500.0,0.00030987,2]
[344032031,1733232572104,-159.95232795,0.00030987,2]
[344032032,1733232572131,-500.0,0.00030987,2]
[344032033,1733232572154,-500.0,0.00030987,2]
[344032034,1733232572177,-500.0,0.00030987,2]
[344032035,1733232572199,-500.0,0.00030987,2]
[344032036,1733232572220,-500.0,0.00030987,2]
[344032037,1733232572242,-500.0,0.00030987,2]
[344032038,1733232572262,-500.0,0.00030987,2]
[344032039,1733232572283,-500.0,0.00030987,2]
[344032040,1733232572304,-500.0,0.00030987,2]
[344032041,1733232572323,-500.0,0.00030987,2]
[344032042,1733232572346,-499.99999999,0.00030987,2]
[344032043,1733232572366,-500.0,0.00030988,7]
[344032044,1733232572389,-500.0,0.00030988,7]
[344032045,1733232572410,-500.0,0.00030988,7]
[344032046,1733232572430,-500.0,0.00030988,7]
[344032047,1733232572450,-500.0,0.00030988,7]
[344032048,1733232572470,-24664.1321,0.00031,120]
[344032049,1733232572490,-10000.0,0.00031,7]
[344032050,1733232572512,-10000.0,0.00031,14]
[344032051,1733232572538,-500.0,0.00031009,2]
[344032052,1733232572563,-200.69655782,0.00031009,2]
[344032053,1733232572587,-269.72611251,0.00031009,2]
[344032054,1733232572609,-151.747178,0.0003101,7]
[344032055,1733232572636,-151.0,0.0003101,7]
[344032056,1733232572660,-171.9836,0.0003101,7]
[344032057,1733232572684,-282.04385543,0.0003101,7]
[344032058,1733232572710,-282.04385543,0.0003101,7]
[344032059,1733232572735,-22912.89168026,0.00031014,2]
[344032060,1733232572768,-500.0,0.00031022,7]
[344032061,1733232572792,-151.0,0.00031022,7]
[344032062,1733232572815,-151.0,0.00031022,7]
[344032063,1733232572840,-151.0,0.00031022,7]
[344032064,1733232572864,-151.0,0.00031022,7]
[344032065,1733232572891,-151.0,0.00031022,7]
[344032066,1733232572916,-151.0,0.00031022,7]
[344032067,1733232572940,-151.0,0.00031022,7]
[344032068,1733232572962,-151.0,0.00031022,7]
[344032069,1733232572986,-151.0,0.00031022,7]
[344032070,1733232573010,-151.0,0.00031022,7]
[344032071,1733232573038,-151.0,0.00031022,7]
[344032072,1733232573063,-151.0,0.00031022,7]
[344032073,1733232573087,-151.0,0.00031022,7]
[344032074,1733232573114,-151.0,0.00031022,7]
[344032075,1733232573142,-151.0,0.00031022,7]
[344032076,1733232573171,-151.0,0.00031022,7]
[344032077,1733232573198,-151.0,0.00031022,7]
[344032078,1733232573224,-151.0,0.00031022,7]
[344032079,1733232573247,-170.283904,0.00031022,7]
[344032080,1733232573268,-451.75866223,0.00031022,7]
[344032081,1733232573291,-500.0,0.00031022,7]
[344032082,1733232573316,-639.35,0.00031022,7]
[344032083,1733232573348,-500.0,0.00031022,7]
[344032084,1733232573377,-502.21642557,0.00031022,7]
[344032085,1733232573400,-500.0,0.00031022,7]
[344032086,1733232573425,-500.0,0.00031022,7]
[344032087,1733232573450,-500.0,0.00031022,7]
[344032088,1733232573473,-151.0,0.00031023,7]
[344032089,1733232573498,-151.0,0.00031023,7]
[344032090,1733232573521,-232.671404,0.00031023,7]
[344032091,1733232573544,-151.0,0.00031023,7]
[344032092,1733232573567,-151.0,0.00031023,7]
[344032093,1733232573592,-151.0,0.00031023,7]
[344032094,1733232573631,-151.0,0.00031023,7]
[344032095,1733232573669,-154.223238,0.00031023,7]
[344032096,1733232573694,-500.0,0.00031026,7]
[344032097,1733232573720,-500.0,0.00031177,7]
[344032098,1733232573851,-500.0,0.00031178,7]
[344032099,1733232573881,-500.0,0.00031178,7]
[344032100,1733232573905,-505.15,0.00031178,7]
[344032101,1733232573929,-500.0,0.00031262,7]
[344032102,1733232573952,-500.0,0.00031296,7]
[344032103,1733232573974,-500.0,0.000313,7]
[344032104,1733232573997,-500.0,0.00031451,7]
[344032105,1733232574019,-500.0,0.00031452,7]
[344032106,1733232574041,-500.0,0.00031452,7]
[344032107,1733232574065,-505.15,0.00031452,7]
[344032108,1733232574087,-1000.0,0.00031506,30]
[344032109,1733232574109,-1000.0,0.00031506,30]
[344032110,1733232574133,-1000.0,0.00031506,30]
[344032111,1733232574155,-1000.0,0.00031506,30]
[344032112,1733232574176,-1000.0,0.00031506,30]
[344032113,1733232574198,-1000.0,0.00031506,30]
[344032114,1733232574218,-1000.0,0.00031506,30]
[344032115,1733232574240,-500.0,0.00031536,7]
[344032116,1733232574262,-500.0,0.0003157,7]
[344032117,1733232574287,-503.06716596,0.00031574,7]
[344032118,1733232574309,-500.0,0.00031725,7]
[344032119,1733232574330,-507.46313913,0.00031726,7]
[344032120,1733232574354,-500.0,0.00031726,7]
[344032121,1733232574380,-505.15,0.00031726,7]
[344032122,1733232574402,-500.0,0.0003181,7]
[344032123,1733232574425,-500.0,0.00031844,7]
[344032124,1733232574447,-310.059314,0.00031921,2]
[344032125,1733232574469,-312.042335,0.00031921,2]
[344032126,1733232574490,-500.0,0.00031999,7]
[344032127,1733232574514,-500.0,0.00032,7]
[344032128,1733232574538,-505.15,0.00032,7]
[344032129,1733232574559,-500.0,0.00032084,7]
[344032130,1733232574583,-500.0,0.00032118,7]
[344032131,1733232574611,-152.78,0.000322,31]
[344032132,1733232574645,-152.78,0.000322,31]
[344032133,1733232574667,-216.0,0.00032219,2]
[344032134,1733232574689,-500.0,0.00032273,7]
[344032135,1733232574712,-500.0,0.00032274,7]
[344032136,1733232574734,-505.15,0.00032274,7]
[344032137,1733232574755,-310.059314,0.0003232,2]
[344032138,1733232574778,-312.042335,0.0003232,2]
[344032139,1733232574799,-557.01537269,0.00032358,7]
[344032140,1733232574821,-500.0,0.00032392,7]
[344032141,1733232574842,-3091.08007551,0.0003242,14]
[344032142,1733232574865,-500.0,0.00032547,7]
[344032143,1733232574889,-500.0,0.00032548,7]
[344032144,1733232574912,-505.15,0.00032548,7]
[344032145,1733232574934,-500.0,0.00032666,7]
[344032146,1733232574955,-310.059314,0.00032719,2]
[344032147,1733232574976,-312.042335,0.00032719,2]
[344032148,1733232574998,-500.0,0.00032821,7]
[344032149,1733232575021,-500.0,0.00032822,7]
[344032150,1733232575043,-505.15,0.00032822,7]
[344032151,1733232575064,-500.0,0.00032876,30]
[344032152,1733232575085,-500.0,0.00032876,34]
[344032153,1733232575105,-504.65352995,0.00032876,38]
[344032154,1733232575130,-494.56726985,0.00032876,2]
[344032155,1733232575152,-500.0,0.00032876,2]
[344032156,1733232575173,-487.22565909,0.00032876,2]
[344032157,1733232575194,-468.29196825,0.00032876,2]
[344032158,1733232575215,-500.0,0.00032876,2]
[344032159,1733232575237,-500.0,0.00032876,2]
[344032160,1733232575258,-500.0,0.00032876,2]
[344032161,1733232575279,-296.02759585,0.00032876,2]
[344032162,1733232575299,-386.47110542,0.00032876,2]
[344032163,1733232575321,-239.99470311,0.00032876,2]
[344032164,1733232575347,-500.0,0.00032876,2]
[344032165,1733232575369,-500.0,0.00032876,2]
[344032166,1733232575391,-244.02843275,0.00032876,2]
[344032167,1733232575413,-476.74355506,0.00032876,2]
[344032168,1733232575434,-1000.0,0.00032876,120]
[344032169,1733232575454,-1000.0,0.00032876,120]
[344032170,1733232575474,-1000.0,0.00032876,120]
[344032171,1733232575494,-190.20566549,0.00032877,2]
[344032172,1733232575515,-500.0,0.0003294,7]
[344032173,1733232575540,-500.0,0.00033095,7]
[344032174,1733232575560,-500.0,0.00033096,7]
[344032175,1733232575587,-505.15,0.00033096,7]
[344032176,1733232575611,-310.059314,0.00033118,2]
[344032177,1733232575636,-312.042335,0.00033118,2]
[344032178,1733232575657,-500.0,0.00033214,7]
[344032179,1733232575678,-500.0,0.00033369,7]
[344032180,1733232575698,-500.0,0.0003337,7]
[344032181,1733232575719,-505.15,0.0003337,7]
[344032182,1733232575741,-500.0,0.00033488,7]
[344032183,1733232575763,-310.059314,0.00033517,2]
[344032184,1733232575783,-312.042335,0.00033517,2]
[344032185,1733232575804,-500.0,0.00033643,7]
[344032186,1733232575826,-500.0,0.00033644,7]
[344032187,1733232575848,-505.15,0.00033644,7]
[344032188,1733232575869,-500.0,0.00033762,7]
[344032189,1733232575891,-8058.37752916,0.0003384,2]
[344032190,1733232575912,-500.0,0.00033917,7]
[344032191,1733232575934,-500.0,0.00033918,7]
[344032192,1733232575955,-505.15,0.00033918,7]
[344032193,1733232575975,-8058.37752917,0.00033997,2]
[344032194,1733232576000,-152.78,0.00034,31]
[344032195,1733232576024,-152.78,0.00034,31]
[344032196,1733232576045,-150.0,0.00034029,2]
[344032197,1733232576068,-500.0,0.00034036,7]
[344032198,1733232576090,-500.0,0.00034191,7]
[344032199,1733232576112,-500.0,0.00034192,7]
[344032200,1733232576139,-505.15,0.00034192,7]
[344032201,1733232576161,-216.0,0.00034233,2]
[344032202,1733232576185,-500.0,0.0003431,7]
[344032203,1733232576208,-500.0,0.00034465,7]
[344032204,1733232576233,-478.04,0.00034466,7]
[344032205,1733232576259,-505.15,0.00034466,7]
[344032206,1733232576282,-216.0,0.00034521,2]
[344032207,1733232576309,-500.0,0.00034584,7]
[344032208,1733232576337,-151.0,0.00034603,120]
[344032209,1733232576363,-500.0,0.00034739,7]
[344032210,1733232576388,-505.15,0.0003474,7]
[344032211,1733232576410,-500.0,0.00034858,7]
[344032212,1733232576431,-10495.53381869,0.00035,2]
[344032213,1733232576527,-505.12218618,0.00035,2]
[344032214,1733232576551,-800.0,0.00035,2]
[344032215,1733232576572,-800.0,0.00035,2]
[344032216,1733232576593,-800.0,0.00035,2]
[344032217,1733232576615,-800.0,0.00035,2]
[344032218,1733232576637,-800.0,0.00035,2]
[344032219,1733232576658,-800.0,0.00035,2]
[344032220,1733232576680,-800.0,0.00035,2]
[344032221,1733232576701,-800.0,0.00035,2]
[344032222,1733232576725,-800.0,0.00035,2]
[344032223,1733232576760,-800.0,0.00035,2]
[344032224,1733232576784,-800.0,0.00035,2]
[344032225,1733232576805,-800.0,0.00035,2]
[344032226,1733232576827,-1300.0,0.00035,2]
[344032227,1733232576850,-557.99890649,0.00035013,7]
[344032228,1733232576874,-505.15,0.00035014,7]
[344032229,1733232576920,-500.0,0.00035132,7]
[344032230,1733232576949,-505.25560301,0.00035288,7]
[344032231,1733232576976,-500.0,0.00035406,7]
[344032232,1733232577000,-865.28760033,0.0003558,2]
[344032233,1733232577025,-1000.0,0.00035616,120]
[344032234,1733232577049,-500.0,0.0003568,7]
[344032235,1733232577074,-1000.0,0.0003589,120]
[344032236,1733232577098,-300.0,0.000359,12]
[344032237,1733232577126,-152.78,0.000359,31]
[344032238,1733232577154,-152.78,0.000359,31]
[344032239,1733232577178,-500.0,0.00035953,7]
[344032240,1733232577201,-1000.0,0.00036164,120]
[344032241,1733232577222,-500.0,0.00036227,7]
[344032242,1733232577243,-216.0,0.00036247,2]
[344032243,1733232577264,-1000.0,0.00036438,120]
[344032244,1733232577285,-5096.0,0.00036667,120]
[344032245,1733232577306,-1000.0,0.00036712,120]
[344032246,1733232577328,-300.0,0.000369,14]
[344032247,1733232577353,-1000.0,0.00036986,120]
[344032248,1733232577379,-1000.0,0.0003726,120]
[344032249,1733232577399,-503.1008071,0.00037314,14]
[344032250,1733232577420,-1000.0,0.00037534,120]
[344032251,1733232577442,-150.0,0.000378,7]
[344032252,1733232577472,-152.78,0.000378,31]
[344032253,1733232577495,-152.78,0.000378,31]
[344032254,1733232577518,-152.78,0.000378,31]
[344032255,1733232577543,-152.78,0.000378,31]
[344032256,1733232577568,-152.78,0.000378,31]
[344032257,1733232577593,-152.78,0.000378,31]
[344032258,1733232577618,-152.78,0.000378,31]
[344032259,1733232577646,-152.78,0.000378,31]
[344032260,1733232577678,500.0,0.00028973,5]
[344032261,1733232608429,155.2133276,0.00030347,2]
[344032262,1733232610820,154.28,0.000308,2]
[344032263,1733232620865,1169.27083333,0.00028986,7]
[344032264,1733232621178,1169.27083333,0.00028986,7]
[344032265,1733232621529,1169.27083333,0.00028986,7]
[344032266,1733232629957,1169.27083333,0.00029176,2]
[344032267,1733232630636,350.0,0.000369,14]
[344032268,1733232631310,199.1725014,0.00030015,2]
[344032306,1733232634754,229.0,0.00031015,2]
[344032307,1733232636285,-814.14397269,0.00031015,10]
[344032308,1733232636298,-54397.3,0.00031015,10]
[344032309,1733232636310,-1469.27083333,0.00031015,10]
[344032310,1733232636322,-1434.45278261,0.00031015,10]
[344032311,1733232636351,500.0,0.00028985,7]
[344032312,1733232636381,500.0,0.00029259,7]
[344032313,1733232636413,150.21,0.00031041,10]
[344032314,1733232636442,150.21,0.00031315,10]
[344032315,1733232636471,500.0,0.00029533,7]
[344032316,1733232636500,371.91,0.00031259,30]
[344032317,1733232636527,150.21,0.00031589,10]
[344032318,1733232636554,503.5829179,0.00029807,7]
[344032319,1733232636581,207.75857668,0.00031863,10]
[344032320,1733232636608,170.8755,0.00033228,2]
[344032321,1733232636918,501.514,0.00033833,7]
[344032337,1733232637673,333.48799,0.00029,120]
[344032418,1733232640563,-374.88858807,0.00031015,10]
[344032419,1733232640576,-15539.35771429,0.00031015,10]
[344032420,1733232640588,-958199.86481239,0.00031015,10]
[344032421,1733232640599,-105228.54769178,0.00031015,10]
[344032422,1733232640628,500.0,0.00028986,7]
[344032423,1733232640655,500.0,0.0002926,7]
[344032424,1733232640683,500.0,0.00029534,7]
[344032425,1733232640708,516.76662678,0.00029808,7]
[344032426,1733232641778,-126.70653473,0.00031015,10]
[344032427,1733232641790,-6763.81636447,0.00031015,10]
[344032450,1733232642964,-47994.04479988,0.00031015,10]
[344032451,1733232642976,-1150.0,0.00031015,10]
[344032452,1733232642988,-1796.72691296,0.00031015,10]
[344032453,1733232643000,-20838.08000244,0.00031015,10]
[344032454,1733232643078,-8076.75923222,0.00031015,10]
[344032455,1733232643091,-1387.23470914,0.00031015,10]
[344032473,1733232644430,-351.03966007,0.00031015,10]
[344032474,1733232644457,3200.0,0.00034054,7]
[344032475,1733232644486,500.0,0.00028986,7]
[344032476,1733232644513,500.0,0.0002926,7]
[344032477,1733232644540,153.0,0.000311,30]
[344032478,1733232644721,500.0,0.00028986,7]
[344032479,1733232645020,500.0,0.0002926,7]
[344032480,1733232645171,278.32,0.00031589,30]
[344032481,1733232645212,153.0,0.000311,30]
[344032483,1733232645291,500.0,0.00029534,7]
[344032494,1733232645584,424.7681284,0.000311,30]
[344032495,1733232645810,153.0,0.000311,30]
[344032497,1733232645837,532.0,0.00034381,2]
[344032498,1733232645876,500.0,0.00029808,7]
[344032500,1733232646247,-161.9629333,0.00031015,10]
[344032501,1733232646274,153.0,0.000311,30]
[344032502,1733232646468,-28389.9,0.00031015,10]
[344032503,1733232646494,500.0,0.00030082,7]
[344032504,1733232646525,202.0,0.00023,2]
[344032505,1733232646553,500.0,0.00030356,7]
[344032506,1733232646727,500.0,0.0003063,7]
[344032507,1733232646991,500.0,0.00030904,7]
[344032508,1733232647037,153.0,0.000311,30]
[344032509,1733232647264,500.0,0.00031178,7]
[344032510,1733232647733,153.0,0.000311,30]
[344032511,1733232647897,350.82488187,0.00031452,7]
[344032512,1733232647927,149.17511813,0.00031452,7]
[344032513,1733232648313,162.0,0.00033,2]
[344032514,1733232648635,162.0,0.00034521,2]
[344032515,1733232651904,500.0,0.00031022,7]
[344032516,1733232652173,387.43756512,0.00028986,7]
[344032517,1733232652378,500.0,0.00028987,7]
[344032518,1733232652508,500.0,0.00031296,7]
[344032519,1733232652635,518.32786223,0.00029261,7]
[344032520,1733232652840,500.0,0.0003157,7]
[344032521,1733232652869,500.0,0.00028985,7]
[344032522,1733232653036,500.0,0.00031844,7]
[344032523,1733232653121,500.0,0.00029259,7]
[344032524,1733232653201,500.0,0.00028985,7]
[344032525,1733232653340,199.04,0.00032118,7]
[344032526,1733232653382,475.17219538,0.00029533,7]
[344032527,1733232653463,500.0,0.00029259,7]
[344032528,1733232653740,500.0,0.00029533,7]
[344032529,1733232654025,500.0,0.00029807,7]
[344032530,1733232654292,500.0,0.00030081,7]
[344032531,1733232654598,500.0,0.00030355,7]
[344032532,1733232654865,500.0,0.00030629,7]
[344032533,1733232655145,367.76686916,0.00030903,7]
[344032534,1733232656314,2377.0,0.00034381,2]
[344032535,1733232657006,883.39,0.00031005,10]
[344032536,1733232659964,500.0,0.00028985,7]
[344032537,1733232660225,500.0,0.00029259,7]
[344032538,1733232660505,500.0,0.00029533,7]
[344032539,1733232660533,2173.0,0.00034381,2]
[344032540,1733232660782,500.0,0.00029807,7]
[344032541,1733232661070,500.0,0.00030081,7]
[344032542,1733232661352,500.0,0.00030355,7]
[344032543,1733232661645,500.0,0.00030629,7]
[344032544,1733232662244,500.0,0.00030903,7]
[344032545,1733232662492,500.0,0.00031177,7]
[344032546,1733232662714,400.0,0.00031014,2]
[344032547,1733232663169,500.0,0.00031014,7]
[344032548,1733232663475,560.0,0.00033391,2]
[344032549,1733232663505,500.0,0.00031288,7]
[344032550,1733232663784,500.0,0.00031562,7]
[344032551,1733232664061,500.0,0.00031836,7]
[344032552,1733232664270,783.0,0.0003595,2]
[344032553,1733232664367,500.0,0.0003211,7]
[344032554,1733232664669,500.0,0.00032384,7]
[344032555,1733232664951,500.0,0.00032658,7]
[344032556,1733232665424,500.0,0.00032932,7]
[344032557,1733232665738,500.0,0.00033206,7]
[344032558,1733232666019,381.97894113,0.0003348,7]
[344032559,1733232667399,736.15,0.00031005,10]
[344032560,1733232670272,502.45314678,0.00028986,7]
[344032561,1733232671703,500.0,0.00031451,7]
[344032562,1733232671922,500.0,0.00028987,7]
[344032563,1733232672393,502.69843321,0.00029261,7]
[344032564,1733232674560,500.0,0.00028987,7]
[344032565,1733232674863,500.0,0.00029261,7]
[344032566,1733232675104,510.12644664,0.00029535,7]
[344032567,1733232678533,613.46,0.00031005,10]
[344032568,1733232681087,192.53062,0.00030137,120]
[344032569,1733232681701,1307.2772708,0.00030015,2]
[344032570,1733232683347,500.0,0.00028985,7]
[344032571,1733232683577,500.0,0.00029259,7]
[344032572,1733232683842,500.0,0.00029533,7]
[344032574,1733232684114,500.0,0.00029807,7]
[344032575,1733232684381,500.0,0.00030081,7]
[344032576,1733232684682,500.0,0.00030355,7]
[344032577,1733232684955,500.0,0.00030629,7]
[344032578,1733232685280,500.0,0.00030903,7]
[344032579,1733232685546,500.0,0.00031177,7]
[344032581,1733232685815,538.40957286,0.00031451,7]
[344032582,1733232687973,11456.44584013,0.00031014,2]
[344032583,1733232688978,511.22,0.00031005,10]
[344032584,1733232689233,500.0,0.00028985,7]
[344032585,1733232693217,500.0,0.00028985,7]
[344032586,1733232696892,18312.59508602,0.00034,9]
[344032587,1733232699280,173.3828838,0.00031014,7]
[344032588,1733232699517,3299.95,0.00028985,7]
[344032589,1733232699714,426.02,0.00030948,10]
[344032590,1733232699767,3299.95,0.00029259,7]
[344032591,1733232700033,3299.95,0.00029533,7]
[344032592,1733232700312,3299.95,0.00029807,7]
[344032593,1733232700586,3299.95,0.00030081,7]
[344032594,1733232700864,3299.95,0.00030355,7]
[344032595,1733232701126,3299.95,0.00030629,7]
[344032596,1733232701393,3299.95,0.00030903,7]
[344032597,1733232702831,3299.95,0.00031177,7]
[344032598,1733232703131,3299.95,0.00031451,7]
[344032599,1733232704709,3299.95,0.00031725,7]
[344032600,1733232706049,3299.95,0.00031999,7]
[344032601,1733232706858,3299.95,0.00032273,7]
[344032602,1733232707975,200.0,0.00028986,7]
[344032603,1733232708086,3299.95,0.00032547,7]
[344032604,1733232708375,3299.95,0.00032821,7]
[344032605,1733232708656,3299.95,0.00033095,7]
[344032606,1733232708930,3299.95,0.00033369,7]
[344032607,1733232709089,985.5181924,0.000269,3]
[344032608,1733232709228,1663.29861034,0.00033643,7]
[344032609,1733232712750,500.0,0.00028987,7]
[344032610,1733232713441,500.0,0.00028985,7]
[344032611,1733232713689,500.0,0.00029259,7]
[344032612,1733232713960,516.30738873,0.00029533,7]
[344032613,1733232727817,500.0,0.00028985,7]
[344032614,1733232728092,500.0,0.00029259,7]
[344032615,1733232728391,500.0,0.00029533,7]
[344032616,1733232731227,34.39180957,0.00028985,7]
[344032618,1733232842064,159.792836,0.00013973,2]
[344032622,1733233135420,588.5654005,0.00027969,2]
[344032625,1733233171606,172.413362,0.00027695,2]
[344032626,1733233387139,682.3350726,0.00028,2]
[344032627,1733233434124,2000.0,0.00028,2]
[344032629,1733233548117,-198.6594632,0.00028066,2]
[344032630,1733233548143,-168.0,0.00028985,7]
[344032631,1733233548165,-500.0,0.00028985,7]
[344032632,1733233548187,-300.0,0.00028985,2]
[344032633,1733233548210,-300.0,0.00028985,2]
[344032634,1733233548232,-501.84404072,0.00028986,7]
[344032635,1733233548253,-500.0,0.00028986,7]
[344032636,1733233548279,-500.0,0.00028986,7]
[344032637,1733233548303,-368.74360861,0.00028986,7]
[344032639,1733233625154,-300.0,0.00028985,2]
[344032640,1733233625180,-22.18776622,0.00028986,7]
[344032641,1733233628142,-111.03005818,0.00028986,7]
[344032642,1733233628165,-500.0,0.00028986,7]
[344032643,1733233628197,-500.0,0.00028986,7]
[344032644,1733233628223,-556.3816924,0.00028986,7]
[344032645,1733233628245,-502.42039432,0.00028986,7]
[344032646,1733233628266,-502.80896849,0.00028986,7]
[344032647,1733233628287,-475.48281691,0.00028986,7]
[344032648,1733233645129,-24.51718309,0.00028986,7]
[344032649,1733233645154,-500.0,0.00028986,7]
[344032650,1733233645179,-500.0,0.00028986,7]
[344032651,1733233645202,-500.0,0.00028986,7]
[344032652,1733233645225,-509.44677657,0.00028986,7]
[344032653,1733233645252,-347.99798178,0.00028986,7]
[344032654,1733233746227,-152.00201822,0.00028986,7]
[344032655,1733233746253,-162.739,0.00028986,21]
[344032656,1733233746281,-500.0,0.00028986,7]
[344032657,1733233746313,-300.0,0.00028986,2]
[344032658,1733233746341,-340.7825412,0.00028987,7]
[344032659,1733233746368,-535.91272939,0.00028987,7]
[344032660,1733233746398,-500.0,0.00028987,7]
[344032661,1733233746426,-502.26649486,0.00028987,7]
[344032662,1733233746450,-501.09810119,0.00028987,7]
[344032663,1733233746473,-501.43293974,0.00028987,7]
[344032664,1733233746496,-513.35998197,0.00028987,7]
[344032665,1733233746520,-504.27089288,0.00028988,7]
[344032666,1733233746548,-500.0,0.0002926,7]
[344032667,1733233746578,-500.0,0.0002926,7]
[344032668,1733233746602,-500.0,0.0002926,7]
[344032669,1733233746628,-505.25736126,0.0002926,7]
[344032670,1733233746654,-500.0,0.0002926,7]
[344032671,1733233746678,-500.0,0.00029534,7]
[344032672,1733233746703,-500.0,0.00029534,7]
[344032673,1733233746726,-500.0,0.00029534,7]
[344032674,1733233746751,-500.0,0.00029534,7]
[344032675,1733233746777,-155.01144531,0.00029694,2]
[344032676,1733233746805,-500.0,0.00029808,7]
[344032677,1733233746835,-500.0,0.00029808,7]
[344032678,1733233746862,-500.0,0.00029808,7]
[344032679,1733233746887,-500.0,0.00029808,7]
[344032680,1733233746913,-151.0,0.0003,120]
[344032681,1733233746941,-151.0,0.0003,120]
[344032682,1733233746966,-10000.0,0.0003,60]
[344032683,1733233747114,-5000.0,0.0003,7]
[344032684,1733233747137,-500.0,0.00030082,7]
[344032685,1733233747160,-500.0,0.00030082,7]
[344032686,1733233747184,-500.0,0.00030082,7]
[344032687,1733233747208,-273.66,0.00030126,10]
[344032688,1733233747232,-467.82,0.00030126,10]
[344032689,1733233747254,-500.0,0.00030136,7]
[344032690,1733233747275,-500.0,0.00030136,7]